[Event "January 2 Early 2024"]
[Site "https://www.chess.com"]
[Date "2024.01.02"]
[Round "8"]
[White "Spichkin, Alexander"]
[Black "Timerkhanov, Alexander"]
[Result "0-1"]
[Board "80"]
[TimeControl "180+1"]
[WhiteFideId "4144074"]
[BlackFideId "24177938"]
[WhiteElo "2440"]
[BlackElo "2646"]
[WhiteTeam "RUS"]
[BlackTeam "RUS"]
[WhiteClock "0:01:49"]
[BlackClock "0:00:44"]

1. f4 {[%clk 0:02:59]}  d5 {[%clk 0:02:57]} 2. Nf3 {[%clk 0:02:58]}  g6 {[%clk 0:02:55]} 3. e3 {[%clk 0:02:59]}  Bg7 {[%clk 0:02:56]} 4. Be2 {[%clk 0:02:59]}  Nf6 {[%clk 0:02:56]} 5. O-O {[%clk 0:03:00]}  O-O {[%clk 0:02:55]} 6. d3 {[%clk 0:03:00]}  c5 {[%clk 0:02:55]} 7. Kh1 {[%clk 0:02:59]}  Nc6 {[%clk 0:02:55]} 8. a4 {[%clk 0:03:00]}  Re8 {[%clk 0:02:50]} 9. Ne5 {[%clk 0:02:59]}  Nd7 {[%clk 0:02:48]} 10. Nxc6 {[%clk 0:02:57]}  bxc6 {[%clk 0:02:48]} 11. Qe1 {[%clk 0:02:57]}  e5 {[%clk 0:02:48]} 12. f5 {[%clk 0:02:58]}  Nf6 {[%clk 0:02:47]} 13. Qg3 {[%clk 0:02:57]}  e4 {[%clk 0:02:43]} 14. fxg6 {[%clk 0:02:55]}  hxg6 {[%clk 0:02:42]} 15. d4 {[%clk 0:02:54]}  c4 {[%clk 0:02:34]} 16. b3 {[%clk 0:02:47]}  Ba6 {[%clk 0:02:17]} 17. Na3 {[%clk 0:02:46]}  Qa5 {[%clk 0:02:02]} 18. bxc4 {[%clk 0:02:43]}  Qc3 {[%clk 0:02:00]} 19. Rb1 {[%clk 0:02:39]}  Bxc4 {[%clk 0:01:52]} 20. Bb2 {[%clk 0:02:31]}  Qd2 {[%clk 0:01:38]} 21. Bxc4 {[%clk 0:02:30]}  dxc4 {[%clk 0:01:36]} 22. Nxc4 {[%clk 0:02:31]}  Qxc2 {[%clk 0:01:36]} 23. Nd6 {[%clk 0:02:28]}  Re6 {[%clk 0:01:25]} 24. d5 {[%clk 0:02:24]}  Nh5 {[%clk 0:01:16]} 25. Qg5 {[%clk 0:02:06]}  Rxd6 {[%clk 0:01:14]} 26. Bxg7 {[%clk 0:02:07]}  Nxg7 {[%clk 0:01:12]} 27. Qe7 {[%clk 0:02:07]}  Nf5 {[%clk 0:01:08]} 28. Qb7 {[%clk 0:02:04]}  Rad8 {[%clk 0:01:05]} 29. Rbc1 {[%clk 0:02:02]}  Qe2 {[%clk 0:00:49]} 30. dxc6 {[%clk 0:02:00]}  Rd1 {[%clk 0:00:45]} 31. Qb1 {[%clk 0:01:49]}  Qxf1# {[%clk 0:00:44]} 0-1

[Event "January 2 Early 2024"]
[Site "https://www.chess.com"]
[Date "2024.01.02"]
[Round "8"]
[White "Begunov, Konstantin"]
[Black "CamillaEffect"]
[Result "1-0"]
[Board "81"]
[TimeControl "180+1"]
[WhiteFideId "4118510"]
[WhiteElo "2434"]
[BlackElo "2645"]
[WhiteTeam "RUS"]
[WhiteClock "0:00:53"]
[BlackClock "0:00:00"]

1. d4 {[%clk 0:03:00]}  d5 {[%clk 0:02:58]} 2. c4 {[%clk 0:03:01]}  c6 {[%clk 0:02:58]} 3. Nc3 {[%clk 0:03:01]}  Nf6 {[%clk 0:02:58]} 4. cxd5 {[%clk 0:02:59]}  cxd5 {[%clk 0:02:59]} 5. Bf4 {[%clk 0:02:59]}  Nc6 {[%clk 0:02:59]} 6. e3 {[%clk 0:03:00]}  e6 {[%clk 0:02:55]} 7. Bd3 {[%clk 0:02:58]}  Bd6 {[%clk 0:02:54]} 8. Bg5 {[%clk 0:02:57]}  h6 {[%clk 0:02:53]} 9. Bh4 {[%clk 0:02:57]}  O-O {[%clk 0:02:48]} 10. Nf3 {[%clk 0:02:57]}  a6 {[%clk 0:02:45]} 11. O-O {[%clk 0:02:57]}  b5 {[%clk 0:02:46]} 12. a4 {[%clk 0:02:57]}  b4 {[%clk 0:02:45]} 13. Na2 {[%clk 0:02:57]}  a5 {[%clk 0:02:45]} 14. Qe2 {[%clk 0:02:57]}  Bb7 {[%clk 0:02:34]} 15. Nc1 {[%clk 0:02:57]}  g5 {[%clk 0:02:28]} 16. Bg3 {[%clk 0:02:56]}  Ne4 {[%clk 0:02:29]} 17. Nb3 {[%clk 0:02:44]}  f5 {[%clk 0:02:23]} 18. Bxd6 {[%clk 0:02:42]}  Qxd6 {[%clk 0:02:24]} 19. Rfc1 {[%clk 0:02:36]}  Rfc8 {[%clk 0:02:06]} 20. Nc5 {[%clk 0:02:26]}  Rc7 {[%clk 0:01:55]} 21. Bb5 {[%clk 0:02:15]}  Bc8 {[%clk 0:01:08]} 22. Rc2 {[%clk 0:02:02]}  g4 {[%clk 0:00:59]} 23. Ne1 {[%clk 0:01:55]}  Ne7 {[%clk 0:00:48]} 24. Rac1 {[%clk 0:01:50]}  Raa7 {[%clk 0:00:45]} 25. Ned3 {[%clk 0:01:48]}  Ng6 {[%clk 0:00:44]} 26. Be8 {[%clk 0:01:41]}  Nh4 {[%clk 0:00:33]} 27. Ne5 {[%clk 0:01:33]}  Nxc5 {[%clk 0:00:22]} 28. Rxc5 {[%clk 0:01:32]}  Rxc5 {[%clk 0:00:22]} 29. Rxc5 {[%clk 0:01:32]}  Rc7 {[%clk 0:00:22]} 30. Bc6 {[%clk 0:01:19]}  Kg7 {[%clk 0:00:14]} 31. Qb5 {[%clk 0:01:19]}  Ng6 {[%clk 0:00:11]} 32. Nd3 {[%clk 0:01:10]}  Bd7 {[%clk 0:00:09]} 33. Bxd7 {[%clk 0:01:09]}  Qxd7 {[%clk 0:00:07]} 34. Qxd7+ {[%clk 0:01:07]}  Rxd7 {[%clk 0:00:08]} 35. Rxa5 {[%clk 0:01:07]}  Rc7 {[%clk 0:00:06]} 36. Nc5 {[%clk 0:01:07]}  Kf6 {[%clk 0:00:05]} 37. Rb5 {[%clk 0:01:06]}  e5 {[%clk 0:00:05]} 38. Rb6+ {[%clk 0:01:06]}  Kf7 {[%clk 0:00:05]} 39. g3 {[%clk 0:01:01]}  exd4 {[%clk 0:00:04]} 40. exd4 {[%clk 0:01:02]}  Re7 {[%clk 0:00:04]} 41. Kf1 {[%clk 0:01:01]}  f4 {[%clk 0:00:04]} 42. Rxb4 {[%clk 0:00:58]}  Re8 {[%clk 0:00:04]} 43. Rb7+ {[%clk 0:00:57]}  Kf6 {[%clk 0:00:04]} 44. a5 {[%clk 0:00:58]}  f3 {[%clk 0:00:04]} 45. Rb6+ {[%clk 0:00:55]}  Kf7 {[%clk 0:00:00]} 46. Re6 {[%clk 0:00:53]} 1-0

[Event "January 2 Early 2024"]
[Site "https://www.chess.com"]
[Date "2024.01.02"]
[Round "8"]
[White "Tregubov, Pavel V."]
[Black "Rees, Ioan"]
[Result "1-0"]
[Board "82"]
[TimeControl "180+1"]
[WhiteFideId "4115341"]
[BlackFideId "1801236"]
[WhiteElo "2638"]
[BlackElo "2431"]
[WhiteTeam "FRA"]
[BlackTeam "WLS"]
[WhiteClock "0:02:31"]
[BlackClock "0:01:44"]

1. e4 {[%clk 0:03:00]}  c6 {[%clk 0:02:59]} 2. Nf3 {[%clk 0:02:59]}  d5 {[%clk 0:03:00]} 3. Nc3 {[%clk 0:02:59]}  dxe4 {[%clk 0:02:59]} 4. Nxe4 {[%clk 0:03:00]}  Nf6 {[%clk 0:02:59]} 5. Qe2 {[%clk 0:03:00]}  Nxe4 {[%clk 0:02:59]} 6. Qxe4 {[%clk 0:03:00]}  Nd7 {[%clk 0:03:00]} 7. Bc4 {[%clk 0:03:01]}  Nf6 {[%clk 0:03:00]} 8. Ne5 {[%clk 0:03:01]}  e6 {[%clk 0:03:01]} 9. Qf4 {[%clk 0:02:59]}  Qc7 {[%clk 0:02:50]} 10. d4 {[%clk 0:02:57]}  Bd6 {[%clk 0:02:48]} 11. O-O {[%clk 0:02:56]}  b5 {[%clk 0:02:43]} 12. Bd3 {[%clk 0:02:54]}  Bb7 {[%clk 0:02:43]} 13. Qg3 {[%clk 0:02:54]}  O-O {[%clk 0:02:15]} 14. Bh6 {[%clk 0:02:53]}  Ne8 {[%clk 0:02:13]} 15. Bf4 {[%clk 0:02:49]}  Kh8 {[%clk 0:02:07]} 16. Qh4 {[%clk 0:02:38]}  Nf6 {[%clk 0:01:44]} 17. Bg5 {[%clk 0:02:31]} 1-0

[Event "January 2 Early 2024"]
[Site "https://www.chess.com"]
[Date "2024.01.02"]
[Round "8"]
[White "Poltorak, Sebastian"]
[Black "Astafurov, Arseniy"]
[Result "0-1"]
[Board "83"]
[TimeControl "180+1"]
[WhiteFideId "1199498"]
[BlackFideId "24175218"]
[WhiteElo "2629"]
[BlackElo "2427"]
[WhiteTeam "POL"]
[BlackTeam "RUS"]
[WhiteClock "0:00:02"]
[BlackClock "0:00:06"]

1. e4 {[%clk 0:02:27]}  e6 {[%clk 0:02:59]} 2. Nc3 {[%clk 0:02:26]}  d5 {[%clk 0:03:00]} 3. exd5 {[%clk 0:02:27]}  exd5 {[%clk 0:03:01]} 4. d4 {[%clk 0:02:28]}  c6 {[%clk 0:02:56]} 5. Bd3 {[%clk 0:02:28]}  Bd6 {[%clk 0:02:57]} 6. Nge2 {[%clk 0:02:28]}  Ne7 {[%clk 0:02:56]} 7. Bg5 {[%clk 0:02:28]}  f6 {[%clk 0:02:54]} 8. Bh4 {[%clk 0:02:29]}  Bf5 {[%clk 0:02:54]} 9. Bg3 {[%clk 0:02:28]}  O-O {[%clk 0:02:53]} 10. Qd2 {[%clk 0:02:25]}  b5 {[%clk 0:02:48]} 11. O-O-O {[%clk 0:02:24]}  a5 {[%clk 0:02:46]} 12. Rhe1 {[%clk 0:02:18]}  Na6 {[%clk 0:02:46]} 13. Nf4 {[%clk 0:02:08]}  Nc7 {[%clk 0:02:35]} 14. Re2 {[%clk 0:01:46]}  a4 {[%clk 0:02:16]} 15. Rde1 {[%clk 0:01:46]}  b4 {[%clk 0:01:48]} 16. Nb1 {[%clk 0:01:44]}  Bxd3 {[%clk 0:01:44]} 17. Nxd3 {[%clk 0:01:42]}  Rf7 {[%clk 0:01:39]} 18. Bxd6 {[%clk 0:01:41]}  Qxd6 {[%clk 0:01:40]} 19. Nc5 {[%clk 0:01:41]}  Rb8 {[%clk 0:01:34]} 20. g4 {[%clk 0:01:25]}  Ng6 {[%clk 0:01:18]} 21. Nd3 {[%clk 0:01:21]}  Nh4 {[%clk 0:00:45]} 22. Qf4 {[%clk 0:00:54]}  Qxf4+ {[%clk 0:00:38]} 23. Nxf4 {[%clk 0:00:55]}  Nf3 {[%clk 0:00:39]} 24. Rd1 {[%clk 0:00:54]}  Nxh2 {[%clk 0:00:38]} 25. Rg1 {[%clk 0:00:42]}  Nf3 {[%clk 0:00:37]} 26. Rd1 {[%clk 0:00:42]}  Kf8 {[%clk 0:00:37]} 27. Ne6+ {[%clk 0:00:37]}  Nxe6 {[%clk 0:00:36]} 28. Rxe6 {[%clk 0:00:38]}  Rc8 {[%clk 0:00:35]} 29. c3 {[%clk 0:00:27]}  Rb7 {[%clk 0:00:25]} 30. Re3 {[%clk 0:00:21]}  Ng5 {[%clk 0:00:24]} 31. cxb4 {[%clk 0:00:21]}  Rxb4 {[%clk 0:00:24]} 32. Nc3 {[%clk 0:00:22]}  Rcb8 {[%clk 0:00:19]} 33. Rd2 {[%clk 0:00:18]}  Rc4 {[%clk 0:00:19]} 34. Kb1 {[%clk 0:00:11]}  Nf7 {[%clk 0:00:14]} 35. a3 {[%clk 0:00:08]}  Nd6 {[%clk 0:00:14]} 36. Na2 {[%clk 0:00:06]}  Nb5 {[%clk 0:00:13]} 37. Nb4 {[%clk 0:00:04]}  Nxd4 {[%clk 0:00:10]} 38. Rd1 {[%clk 0:00:02]}  Nb5 {[%clk 0:00:07]} 39. Rde1 {[%clk 0:00:02]}  Nd6 {[%clk 0:00:05]} 40. Re6 {[%clk 0:00:02]}  Rd8 {[%clk 0:00:04]} 41. f4 {[%clk 0:00:02]}  d4 {[%clk 0:00:03]} 42. Re7 {[%clk 0:00:02]}  c5 {[%clk 0:00:03]} 43. Rc7 {[%clk 0:00:02]}  cxb4 {[%clk 0:00:03]} 44. Ree7 {[%clk 0:00:02]}  Rxc7 {[%clk 0:00:04]} 45. Rxc7 {[%clk 0:00:02]}  bxa3 {[%clk 0:00:04]} 46. bxa3 {[%clk 0:00:02]}  d3 {[%clk 0:00:05]} 47. Kc1 {[%clk 0:00:03]}  Ne4 {[%clk 0:00:05]} 48. Kd1 {[%clk 0:00:02]}  d2 {[%clk 0:00:06]} 0-1

[Event "January 2 Early 2024"]
[Site "https://www.chess.com"]
[Date "2024.01.02"]
[Round "8"]
[White "Golubev, Mikhail"]
[Black "Mikhalsky, Vladimir"]
[Result "1-0"]
[Board "84"]
[TimeControl "180+1"]
[WhiteFideId "14100983"]
[BlackFideId "14144352"]
[WhiteElo "2611"]
[BlackElo "2423"]
[WhiteTeam "UKR"]
[BlackTeam "UKR"]
[WhiteClock "0:00:07"]
[BlackClock "0:00:00"]

1. e4 {[%clk 0:03:00]}  g6 {[%clk 0:02:59]} 2. d4 {[%clk 0:03:00]}  Bg7 {[%clk 0:03:00]} 3. c4 {[%clk 0:03:00]}  d6 {[%clk 0:02:59]} 4. Nc3 {[%clk 0:03:00]}  e5 {[%clk 0:02:59]} 5. dxe5 {[%clk 0:02:59]}  Bxe5 {[%clk 0:02:58]} 6. Qc2 {[%clk 0:02:58]}  Nc6 {[%clk 0:02:58]} 7. Nf3 {[%clk 0:02:51]}  Bg7 {[%clk 0:02:58]} 8. Bg5 {[%clk 0:02:50]}  Nf6 {[%clk 0:02:53]} 9. O-O-O {[%clk 0:02:49]}  h6 {[%clk 0:02:52]} 10. Bf4 {[%clk 0:02:29]}  Nh5 {[%clk 0:02:45]} 11. Be3 {[%clk 0:02:27]}  O-O {[%clk 0:02:42]} 12. Qd2 {[%clk 0:02:20]}  Kh7 {[%clk 0:02:39]} 13. h3 {[%clk 0:02:18]}  Nf6 {[%clk 0:02:11]} 14. Bd3 {[%clk 0:02:02]}  Ne5 {[%clk 0:02:10]} 15. Nxe5 {[%clk 0:01:54]}  dxe5 {[%clk 0:02:10]} 16. g4 {[%clk 0:01:55]}  c6 {[%clk 0:01:58]} 17. g5 {[%clk 0:01:49]}  Nh5 {[%clk 0:01:47]} 18. gxh6 {[%clk 0:01:44]}  Bf6 {[%clk 0:01:47]} 19. Ne2 {[%clk 0:01:35]}  b5 {[%clk 0:01:36]} 20. cxb5 {[%clk 0:01:28]}  cxb5 {[%clk 0:01:36]} 21. Kb1 {[%clk 0:01:29]}  Be6 {[%clk 0:01:31]} 22. Ng3 {[%clk 0:01:23]}  Nf4 {[%clk 0:01:28]} 23. Bxf4 {[%clk 0:01:23]}  exf4 {[%clk 0:01:28]} 24. Ne2 {[%clk 0:01:01]}  Qc7 {[%clk 0:00:52]} 25. Nxf4 {[%clk 0:00:53]}  Rfd8 {[%clk 0:00:44]} 26. Nxe6 {[%clk 0:00:51]}  fxe6 {[%clk 0:00:44]} 27. f4 {[%clk 0:00:47]}  Bd4 {[%clk 0:00:40]} 28. e5 {[%clk 0:00:41]}  Qb6 {[%clk 0:00:30]} 29. Qg2 {[%clk 0:00:37]}  Rg8 {[%clk 0:00:29]} 30. h4 {[%clk 0:00:31]}  Kh8 {[%clk 0:00:21]} 31. h7 {[%clk 0:00:26]}  Rg7 {[%clk 0:00:20]} 32. Bxg6 {[%clk 0:00:23]}  Be3 {[%clk 0:00:19]} 33. Qg5 {[%clk 0:00:12]}  Rf8 {[%clk 0:00:17]} 34. Rhf1 {[%clk 0:00:12]}  b4 {[%clk 0:00:12]} 35. h5 {[%clk 0:00:10]}  b3 {[%clk 0:00:11]} 36. a3 {[%clk 0:00:10]}  Qc5 {[%clk 0:00:10]} 37. h6 {[%clk 0:00:09]}  Rc7 {[%clk 0:00:09]} 38. Be4 {[%clk 0:00:09]}  Qc2+ {[%clk 0:00:05]} 39. Bxc2 {[%clk 0:00:08]}  bxc2+ {[%clk 0:00:05]} 40. Ka2 {[%clk 0:00:09]}  cxd1=Q {[%clk 0:00:02]} 41. Rxd1 {[%clk 0:00:08]}  Bxf4 {[%clk 0:00:03]} 42. Qg4 {[%clk 0:00:08]}  Bxe5 {[%clk 0:00:02]} 43. Qxe6 {[%clk 0:00:07]}  Bf6 {[%clk 0:00:00]} 44. Rd7 {[%clk 0:00:07]} 1-0

[Event "January 2 Early 2024"]
[Site "https://www.chess.com"]
[Date "2024.01.02"]
[Round "8"]
[White "Novak, Ratko"]
[Black "Luo, Terry"]
[Result "0-1"]
[Board "85"]
[TimeControl "180+1"]
[WhiteFideId "14511827"]
[BlackFideId "30931045"]
[WhiteElo "2387"]
[BlackElo "2610"]
[WhiteTeam "CRO"]
[BlackTeam "USA"]
[WhiteClock "0:00:54"]
[BlackClock "0:02:42"]

1. d4 {[%clk 0:02:59]}  Nf6 {[%clk 0:02:59]} 2. c4 {[%clk 0:02:59]}  g6 {[%clk 0:03:00]} 3. Nc3 {[%clk 0:03:00]}  Bg7 {[%clk 0:03:01]} 4. e4 {[%clk 0:03:00]}  d6 {[%clk 0:03:02]} 5. f3 {[%clk 0:03:00]}  O-O {[%clk 0:03:02]} 6. Be3 {[%clk 0:03:01]}  c5 {[%clk 0:03:03]} 7. dxc5 {[%clk 0:03:01]}  dxc5 {[%clk 0:03:04]} 8. Qxd8 {[%clk 0:03:02]}  Rxd8 {[%clk 0:03:05]} 9. Bxc5 {[%clk 0:03:02]}  Nc6 {[%clk 0:03:05]} 10. Nd5 {[%clk 0:03:02]}  Nd7 {[%clk 0:02:59]} 11. Nxe7+ {[%clk 0:03:01]}  Nxe7 {[%clk 0:02:57]} 12. Bxe7 {[%clk 0:03:02]}  Re8 {[%clk 0:02:58]} 13. Ba3 {[%clk 0:03:01]}  f5 {[%clk 0:02:58]} 14. O-O-O {[%clk 0:03:02]}  fxe4 {[%clk 0:02:58]} 15. fxe4 {[%clk 0:03:02]}  Nf6 {[%clk 0:02:57]} 16. Bd3 {[%clk 0:02:55]}  Bg4 {[%clk 0:02:53]} 17. Nf3 {[%clk 0:02:55]}  Nxe4 {[%clk 0:02:54]} 18. Bxe4 {[%clk 0:02:39]}  Rxe4 {[%clk 0:02:55]} 19. b3 {[%clk 0:02:39]}  Re2 {[%clk 0:02:54]} 20. Bc5 {[%clk 0:00:54]}  Bb2+ {[%clk 0:02:42]} 0-1

[Event "January 2 Early 2024"]
[Site "https://www.chess.com"]
[Date "2024.01.02"]
[Round "8"]
[White "Gao, Raymond"]
[Black "Aaditya Dhingra"]
[Result "0-1"]
[Board "86"]
[TimeControl "180+1"]
[WhiteFideId "2629429"]
[BlackFideId "25678191"]
[WhiteElo "2367"]
[BlackElo "2606"]
[WhiteTeam "CAN"]
[BlackTeam "IND"]
[WhiteClock "0:02:00"]
[BlackClock "0:01:34"]

1. e4 {[%clk 0:03:00]}  e5 {[%clk 0:02:58]} 2. Nf3 {[%clk 0:03:01]}  Nc6 {[%clk 0:02:58]} 3. d4 {[%clk 0:03:01]}  exd4 {[%clk 0:02:58]} 4. Bc4 {[%clk 0:03:02]}  Nf6 {[%clk 0:02:57]} 5. e5 {[%clk 0:03:01]}  d5 {[%clk 0:02:57]} 6. Bb5 {[%clk 0:03:02]}  Ne4 {[%clk 0:02:57]} 7. Nxd4 {[%clk 0:03:02]}  Bd7 {[%clk 0:02:58]} 8. Bxc6 {[%clk 0:03:02]}  bxc6 {[%clk 0:02:58]} 9. O-O {[%clk 0:03:02]}  Be7 {[%clk 0:02:58]} 10. f3 {[%clk 0:02:59]}  Nc5 {[%clk 0:02:58]} 11. f4 {[%clk 0:02:58]}  Ne4 {[%clk 0:02:53]} 12. Nc3 {[%clk 0:02:58]}  O-O {[%clk 0:02:48]} 13. f5 {[%clk 0:02:56]}  c5 {[%clk 0:02:47]} 14. Nde2 {[%clk 0:02:52]}  Nxc3 {[%clk 0:02:40]} 15. bxc3 {[%clk 0:02:52]}  Bb5 {[%clk 0:02:31]} 16. f6 {[%clk 0:02:51]}  gxf6 {[%clk 0:02:30]} 17. Nd4 {[%clk 0:02:44]}  cxd4 {[%clk 0:02:22]} 18. Bh6 {[%clk 0:02:44]}  Kh8 {[%clk 0:02:18]} 19. Qxd4 {[%clk 0:02:27]}  Bxf1 {[%clk 0:02:12]} 20. Rxf1 {[%clk 0:02:21]}  fxe5 {[%clk 0:02:06]} 21. Qxe5+ {[%clk 0:02:17]}  f6 {[%clk 0:02:06]} 22. Qg3 {[%clk 0:02:11]}  Rg8 {[%clk 0:02:05]} 23. Qd3 {[%clk 0:02:07]}  Rg6 {[%clk 0:02:02]} 24. Bf4 {[%clk 0:02:07]}  Qd7 {[%clk 0:01:59]} 25. Rf3 {[%clk 0:02:06]}  c6 {[%clk 0:01:56]} 26. Rh3 {[%clk 0:02:06]}  Rag8 {[%clk 0:01:52]} 27. Bg3 {[%clk 0:02:03]}  Bc5+ {[%clk 0:01:50]} 28. Kf1 {[%clk 0:02:00]}  Qe7 {[%clk 0:01:34]} 0-1

[Event "January 2 Early 2024"]
[Site "https://www.chess.com"]
[Date "2024.01.02"]
[Round "8"]
[White "Sharapov, Evgeny"]
[Black "Ghosh, Chanchal Kumer"]
[Result "1-0"]
[Board "88"]
[TimeControl "180+1"]
[WhiteFideId "14103133"]
[BlackFideId "10201858"]
[WhiteElo "2557"]
[BlackElo "2082"]
[WhiteTeam "UKR"]
[BlackTeam "BAN"]
[WhiteClock "0:00:40"]
[BlackClock "0:00:00"]

1. e4 {[%clk 0:03:00]}  c5 {[%clk 0:03:00]} 2. Nf3 {[%clk 0:02:59]}  d6 {[%clk 0:03:00]} 3. d4 {[%clk 0:02:59]}  cxd4 {[%clk 0:02:57]} 4. Nxd4 {[%clk 0:02:59]}  Nf6 {[%clk 0:02:49]} 5. Nc3 {[%clk 0:02:59]}  a6 {[%clk 0:02:50]} 6. g3 {[%clk 0:02:59]}  e5 {[%clk 0:02:45]} 7. Nb3 {[%clk 0:02:58]}  Be6 {[%clk 0:02:32]} 8. Bg2 {[%clk 0:02:58]}  Be7 {[%clk 0:02:31]} 9. a4 {[%clk 0:02:57]}  b6 {[%clk 0:02:29]} 10. O-O {[%clk 0:02:56]}  O-O {[%clk 0:02:28]} 11. Re1 {[%clk 0:02:56]}  Nbd7 {[%clk 0:02:25]} 12. Nd2 {[%clk 0:02:56]}  Qc7 {[%clk 0:02:06]} 13. Nf1 {[%clk 0:02:56]}  Rfc8 {[%clk 0:02:02]} 14. Ne3 {[%clk 0:02:54]}  Rab8 {[%clk 0:02:00]} 15. Ncd5 {[%clk 0:02:49]}  Bxd5 {[%clk 0:01:57]} 16. exd5 {[%clk 0:02:49]}  g6 {[%clk 0:01:53]} 17. c4 {[%clk 0:02:48]}  a5 {[%clk 0:01:50]} 18. b3 {[%clk 0:02:48]}  Nc5 {[%clk 0:01:45]} 19. Bb2 {[%clk 0:02:46]}  Re8 {[%clk 0:01:43]} 20. h4 {[%clk 0:02:45]}  Nfd7 {[%clk 0:01:40]} 21. h5 {[%clk 0:02:44]}  f5 {[%clk 0:01:38]} 22. hxg6 {[%clk 0:02:44]}  hxg6 {[%clk 0:01:38]} 23. f4 {[%clk 0:02:41]}  Bf6 {[%clk 0:01:36]} 24. Qc2 {[%clk 0:02:39]}  exf4 {[%clk 0:01:33]} 25. gxf4 {[%clk 0:02:39]}  Bxb2 {[%clk 0:01:26]} 26. Qxb2 {[%clk 0:02:39]}  Nd3 {[%clk 0:01:25]} 27. Qc3 {[%clk 0:02:33]}  Nxe1 {[%clk 0:01:20]} 28. Rxe1 {[%clk 0:02:33]}  Nc5 {[%clk 0:01:17]} 29. Qf6 {[%clk 0:02:30]}  Qg7 {[%clk 0:01:04]} 30. Qxd6 {[%clk 0:02:30]}  Nd3 {[%clk 0:01:01]} 31. Re2 {[%clk 0:02:26]}  Rbd8 {[%clk 0:01:00]} 32. Qxb6 {[%clk 0:02:11]}  Nxf4 {[%clk 0:01:00]} 33. Rf2 {[%clk 0:02:10]}  Nd3 {[%clk 0:00:47]} 34. Rd2 {[%clk 0:02:04]}  Rb8 {[%clk 0:00:41]} 35. Qxa5 {[%clk 0:01:44]}  Rxe3 {[%clk 0:00:37]} 36. d6 {[%clk 0:01:45]}  Qd4 {[%clk 0:00:36]} 37. Qd5+ {[%clk 0:01:39]}  Qxd5 {[%clk 0:00:34]} 38. Bxd5+ {[%clk 0:01:39]}  Kg7 {[%clk 0:00:34]} 39. a5 {[%clk 0:01:37]}  Rxb3 {[%clk 0:00:33]} 40. a6 {[%clk 0:01:34]}  Rb1+ {[%clk 0:00:25]} 41. Kh2 {[%clk 0:01:31]}  Ne5 {[%clk 0:00:20]} 42. a7 {[%clk 0:01:27]}  Ra1 {[%clk 0:00:18]} 43. a8=Q {[%clk 0:01:25]}  Rxa8 {[%clk 0:00:19]} 44. Bxa8 {[%clk 0:01:25]}  Kf6 {[%clk 0:00:19]} 45. d7 {[%clk 0:01:24]}  Nxd7 {[%clk 0:00:16]} 46. Rxd7 {[%clk 0:01:24]}  Rc3 {[%clk 0:00:16]} 47. Bd5 {[%clk 0:01:24]}  g5 {[%clk 0:00:16]} 48. Rd8 {[%clk 0:01:02]}  Ke5 {[%clk 0:00:16]} 49. Rg8 {[%clk 0:01:01]}  g4 {[%clk 0:00:15]} 50. Kg2 {[%clk 0:00:56]}  Kf4 {[%clk 0:00:15]} 51. Kf1 {[%clk 0:00:56]}  Ke5 {[%clk 0:00:11]} 52. Ke2 {[%clk 0:00:56]}  g3 {[%clk 0:00:10]} 53. Kd2 {[%clk 0:00:55]}  Ra3 {[%clk 0:00:10]} 54. Rg5 {[%clk 0:00:51]}  Kf6 {[%clk 0:00:09]} 55. Rg8 {[%clk 0:00:50]}  Ke5 {[%clk 0:00:09]} 56. Re8+ {[%clk 0:00:46]}  Kd4 {[%clk 0:00:09]} 57. Ke2 {[%clk 0:00:43]}  f4 {[%clk 0:00:08]} 58. Re4+ {[%clk 0:00:41]}  Kc5 {[%clk 0:00:08]} 59. Rxf4 {[%clk 0:00:41]}  g2 {[%clk 0:00:05]} 60. Rg4 {[%clk 0:00:41]}  Ra2+ {[%clk 0:00:05]} 61. Kf3 {[%clk 0:00:40]}  Rd2 {[%clk 0:00:03]} 62. Rxg2 {[%clk 0:00:40]}  Rd4 {[%clk 0:00:04]} 63. Ke3 {[%clk 0:00:40]}  Rd1 {[%clk 0:00:02]} 64. Rg6 {[%clk 0:00:40]}  Re1+ {[%clk 0:00:00]} 65. Kd2 {[%clk 0:00:40]} 1-0

[Event "January 2 Early 2024"]
[Site "https://www.chess.com"]
[Date "2024.01.02"]
[Round "8"]
[White "Bardyk, Artem"]
[Black "Adelman, Charles"]
[Result "1/2-1/2"]
[Board "89"]
[TimeControl "180+1"]
[WhiteFideId "34349979"]
[BlackFideId "2003597"]
[WhiteElo "2728"]
[BlackElo "2241"]
[WhiteTeam "RUS"]
[BlackTeam "USA"]
[WhiteClock "0:00:08"]
[BlackClock "0:00:35"]

1. e4 {[%clk 0:03:00]}  Nf6 {[%clk 0:02:59]} 2. e5 {[%clk 0:02:59]}  Nd5 {[%clk 0:02:59]} 3. Bc4 {[%clk 0:03:00]}  e6 {[%clk 0:02:58]} 4. d4 {[%clk 0:02:55]}  d6 {[%clk 0:02:58]} 5. Nf3 {[%clk 0:02:54]}  Be7 {[%clk 0:02:57]} 6. O-O {[%clk 0:02:53]}  O-O {[%clk 0:02:57]} 7. Qe2 {[%clk 0:02:53]}  b6 {[%clk 0:02:51]} 8. Bd3 {[%clk 0:02:41]}  Bb7 {[%clk 0:02:49]} 9. Be4 {[%clk 0:02:40]}  Qc8 {[%clk 0:02:40]} 10. a3 {[%clk 0:02:30]}  c5 {[%clk 0:02:39]} 11. exd6 {[%clk 0:02:16]}  Bxd6 {[%clk 0:02:36]} 12. dxc5 {[%clk 0:01:59]}  Bxc5 {[%clk 0:02:30]} 13. Rd1 {[%clk 0:01:53]}  Nf6 {[%clk 0:02:23]} 14. Bxb7 {[%clk 0:01:50]}  Qxb7 {[%clk 0:02:23]} 15. b4 {[%clk 0:01:50]}  Be7 {[%clk 0:02:19]} 16. Bb2 {[%clk 0:01:50]}  Nbd7 {[%clk 0:02:16]} 17. Nbd2 {[%clk 0:01:50]}  Rac8 {[%clk 0:02:16]} 18. c4 {[%clk 0:01:49]}  Rfd8 {[%clk 0:02:12]} 19. Nf1 {[%clk 0:01:47]}  Nf8 {[%clk 0:02:11]} 20. Rxd8 {[%clk 0:01:41]}  Rxd8 {[%clk 0:02:11]} 21. Rd1 {[%clk 0:01:42]}  Rxd1 {[%clk 0:02:10]} 22. Qxd1 {[%clk 0:01:43]}  Qd7 {[%clk 0:02:03]} 23. Qxd7 {[%clk 0:01:40]}  N8xd7 {[%clk 0:02:03]} 24. Ne3 {[%clk 0:01:40]}  Ne4 {[%clk 0:02:02]} 25. Kf1 {[%clk 0:01:40]}  h6 {[%clk 0:01:59]} 26. Ke2 {[%clk 0:01:40]}  f5 {[%clk 0:01:56]} 27. Ne5 {[%clk 0:01:31]}  Bf6 {[%clk 0:01:42]} 28. Nd3 {[%clk 0:01:12]}  Bxb2 {[%clk 0:01:35]} 29. Nxb2 {[%clk 0:01:13]}  Kf7 {[%clk 0:01:27]} 30. f3 {[%clk 0:01:12]}  Nd6 {[%clk 0:01:24]} 31. Nd3 {[%clk 0:01:07]}  Nb7 {[%clk 0:01:20]} 32. g4 {[%clk 0:01:03]}  Kf6 {[%clk 0:01:18]} 33. gxf5 {[%clk 0:01:02]}  exf5 {[%clk 0:01:18]} 34. Nd5+ {[%clk 0:01:03]}  Ke6 {[%clk 0:01:10]} 35. Ke3 {[%clk 0:01:03]}  Ne5 {[%clk 0:01:09]} 36. Nc7+ {[%clk 0:00:56]}  Kf6 {[%clk 0:01:04]} 37. Ne8+ {[%clk 0:00:52]}  Ke7 {[%clk 0:00:58]} 38. Nxg7 {[%clk 0:00:49]}  Nxc4+ {[%clk 0:00:58]} 39. Kd4 {[%clk 0:00:49]}  Nxa3 {[%clk 0:00:58]} 40. Nxf5+ {[%clk 0:00:49]}  Kf6 {[%clk 0:00:56]} 41. Nxh6 {[%clk 0:00:50]}  a5 {[%clk 0:00:56]} 42. bxa5 {[%clk 0:00:49]}  bxa5 {[%clk 0:00:53]} 43. h4 {[%clk 0:00:41]}  Nc2+ {[%clk 0:00:53]} 44. Kc3 {[%clk 0:00:38]}  Ne3 {[%clk 0:00:53]} 45. Ng4+ {[%clk 0:00:39]}  Nxg4 {[%clk 0:00:50]} 46. fxg4 {[%clk 0:00:40]}  Nd6 {[%clk 0:00:45]} 47. Nc5 {[%clk 0:00:31]}  Ke5 {[%clk 0:00:41]} 48. Nd3+ {[%clk 0:00:26]}  Ke4 {[%clk 0:00:38]} 49. Kd2 {[%clk 0:00:20]}  Kf3 {[%clk 0:00:38]} 50. g5 {[%clk 0:00:17]}  Kg4 {[%clk 0:00:38]} 51. g6 {[%clk 0:00:09]}  Ne8 {[%clk 0:00:37]} 52. h5 {[%clk 0:00:05]}  Kxh5 {[%clk 0:00:37]} 53. g7 {[%clk 0:00:05]}  Nxg7 {[%clk 0:00:37]} 54. Kc3 {[%clk 0:00:05]}  Kg4 {[%clk 0:00:37]} 55. Kb3 {[%clk 0:00:06]}  Ne6 {[%clk 0:00:36]} 56. Ka4 {[%clk 0:00:07]}  Nc5+ {[%clk 0:00:35]} 57. Kxa5 {[%clk 0:00:08]} 1/2-1/2